[Event "EYTCC Open U18 2022"]
[Site "Thessaloniki"]
[Date "2022.07.16"]
[Round "5.12"]
[White "Soderstrom, Adrian"]
[Black "Cherniaiev, Tykhon"]
[Result "1/2-1/2"]
[ECO "B21"]
[WhiteElo "2292"]
[BlackElo "2186"]
[Annotator "ChessBase"]
[PlyCount "83"]
[EventDate "2022.07.12"]
[EventType "team-tourn"]
[EventCountry "GRE"]
[SourceTitle "playchess.com"]
[Source "ChessBase"]
[SourceQuality "1"]
[WhiteTeam "Sweden"]
[BlackTeam "Germany"]
[WhiteTeamCountry "SWE"]
[BlackTeamCountry "GER"]
[TimeControl "40/5400+30:1800+30"]

1. e4 {[%emt 0:00:07]} c5 {[%emt 0:00:21]} 2. d4 {[%emt 0:00:15]} cxd4 {[%emt 0:00:14]} 3. c3 {[%emt 0:00:07]} dxc3 {[%emt 0:00:15]} 4. Nxc3 {[%emt 0:00:09]} Nc6 {[%emt 0:00:37]} 5. Nf3 {[%emt 0:00:31]} e6 {[%emt 0:00:23]} 6. Bc4 {[%emt 0:00:11]} a6 {[%emt 0:00:21]} 7. O-O {[%emt 0:00:20]} Nge7 {[%emt 0:00:13]} 8. Bg5 {[%emt 0:01:56]} f6 {[%emt 0:00:34]} 9. Be3 {[%emt 0:04:12]} Ng6 {[%emt 0:01:37]} 10. Rc1 {[%emt 0:03:06]} Be7 {[%emt 0:16:27]} 11. Nd5 {[%emt 0:16:00]} exd5 {[%emt 0:04:27]} 12. Qxd5 {[%emt 0:01:13]} Qa5 {[%emt 0:32:08]} 13. Qf7+ {[%emt 0:04:02]} Kd8 {[%emt 0:00:50]} 14. Rfd1 {[%emt 0:08:13]} Kc7 {[%emt 0:09:35]} 15. Bd5 {[%emt 0:11:01]} d6 {[%emt 0:09:49]} 16. Nh4 {[%emt 0:16:49]} Rf8 {[%emt 0:03:24]} 17. Qxg7 {[%emt 0:01:14]} Re8 {[%emt 0:00:34]} 18. Bf7 {[%emt 0:06:26]} Bd7 {[%emt 0:01:06]} 19. Nxg6 {[%emt 0:03:00]} hxg6 {[%emt 0:00:31]} 20. Bxe8 {[%emt 0:00:03]} Rxe8 {[%emt 0:00:07]} 21. Qxg6 {[%emt 0:05:55]} Qxa2 {[%emt 0:03:49]} 22. Bf4 {[%emt 0:03:47]} Qe6 {[%emt 0:03:19]} 23. Qg3 {[%emt 0:02:24]} Rd8 {[%emt 0:03:31]} 24. Qe3 {[%emt 0:01:45]} Kb8 {[%emt 0:02:01]} 25. Rc3 {[%emt 0:03:23]} Rg8 {[%emt 0:01:18]} 26. Bg3 {[%emt 0:01:30]} Ne5 {[%emt 0:02:53]} 27. f3 {[%emt 0:01:33]} Bc6 {[%emt 0:01:30]} 28. Rdc1 {[%emt 0:00:36]} Bd8 {[%emt 0:00:36]} 29. Kh1 {[%emt 0:00:44]} Ba5 {[%emt 0:00:49]} 30. R3c2 {[%emt 0:00:52]} Bb4 {[%emt 0:00:48]} 31. Bf2 {[%emt 0:01:31]} Bc5 {[%emt 0:00:20]} 32. Qc3 {[%emt 0:00:17]} Bxf2 {[%emt 0:00:32]} 33. Rxf2 {[%emt 0:00:02]} f5 {[%emt 0:00:18]} 34. exf5 {[%emt 0:01:15]} Qxf5 {[%emt 0:00:09]} 35. Rd1 {[%emt 0:00:50]} Ka8 {[%emt 0:01:28]} 36. Qd4 {[%emt 0:01:49]} Nxf3 {[%emt 0:00:50]} 37. Qxd6 {[%emt 0:00:42]} Qh5 {[%emt 0:00:30]} 38. Rdf1 {[%emt 0:00:53]} Nh4 {[%emt 0:00:36]} 39. Rf8+ {[%emt 0:00:27]} Rxf8 {[%emt 0:00:11]} 40. Rxf8+ {[%emt 0:00:00]} Ka7 {[%emt 0:00:00]} 41. Qb8+ {[%emt 0:05:21]} Kb6 {[%emt 0:00:15]} 42. Qd8+ {[%emt 0:00:17]} 1/2-1/2

[Event "EYTCC Open U18 2022"]
[Site "Thessaloniki"]
[Date "2022.07.16"]
[Round "5.13"]
[White "Levin, Guy"]
[Black "Zeneli, Klendi"]
[Result "1-0"]
[ECO "A20"]
[WhiteElo "2363"]
[BlackElo "1921"]
[Annotator "ChessBase"]
[PlyCount "79"]
[EventDate "2022.07.12"]
[EventType "team-tourn"]
[EventCountry "GRE"]
[SourceTitle "playchess.com"]
[Source "ChessBase"]
[SourceQuality "1"]
[WhiteTeam "Israel"]
[BlackTeam "Albania"]
[WhiteTeamCountry "ISR"]
[BlackTeamCountry "ALB"]
[TimeControl "40/5400+30:1800+30"]

1. c4 {[%emt 0:00:31]} e5 {[%emt 0:01:05]} 2. d3 {[%emt 0:00:14]} Nf6 {[%emt 0:00:26]} 3. Nf3 {[%emt 0:00:08]} Nc6 {[%emt 0:00:30]} 4. a3 {[%emt 0:00:06]} d5 {[%emt 0:01:29]} 5. cxd5 {[%emt 0:00:08]} Nxd5 {[%emt 0:00:06]} 6. e4 {[%emt 0:00:16]} Nb6 {[%emt 0:03:08]} 7. Be2 {[%emt 0:00:04]} Be7 {[%emt 0:06:11]} 8. O-O {[%emt 0:00:08]} O-O {[%emt 0:00:23]} 9. Be3 {[%emt 0:10:54]} Bg4 {[%emt 0:13:04]} 10. Nbd2 {[%emt 0:00:57]} Qd7 {[%emt 0:02:34]} 11. b4 {[%emt 0:01:21]} a6 {[%emt 0:03:59]} 12. Rc1 {[%emt 0:07:17]} Rad8 {[%emt 0:08:48]} 13. h3 {[%emt 0:06:13]} Be6 {[%emt 0:04:14]} 14. Nb3 {[%emt 0:02:52]} Rfe8 {[%emt 0:04:07]} 15. Na5 {[%emt 0:22:45]} Nxa5 {[%emt 0:14:05]} 16. bxa5 {[%emt 0:00:03]} Nc8 {[%emt 0:00:10]} 17. Nxe5 {[%emt 0:00:17]} Qb5 {[%emt 0:01:59]} 18. d4 {[%emt 0:01:27]} Qxa5 {[%emt 0:00:56]} 19. d5 {[%emt 0:00:14]} Bd7 {[%emt 0:15:51]} 20. Qb3 {[%emt 0:26:36]} Nd6 {[%emt 0:02:56]} 21. Nxd7 {[%emt 0:00:12]} Rxd7 {[%emt 0:00:19]} 22. e5 {[%emt 0:01:56]} Nf5 {[%emt 0:01:41]} 23. Bg4 {[%emt 0:01:42]} g6 {[%emt 0:01:03]} 24. Bxf5 {[%emt 0:00:25]} gxf5 {[%emt 0:00:10]} 25. d6 {[%emt 0:00:36]} Bd8 {[%emt 0:00:50]} 26. Bf4 {[%emt 0:03:11]} cxd6 {[%emt 0:01:33]} 27. exd6 {[%emt 0:01:09]} Re6 {[%emt 0:03:01]} 28. Rfd1 {[%emt 0:03:14]} Qb6 {[%emt 0:02:04]} 29. Qa4 {[%emt 0:01:55]} Qb5 {[%emt 0:01:15]} 30. Qxb5 {[%emt 0:00:08]} axb5 {[%emt 0:00:22]} 31. Rd5 {[%emt 0:00:05]} Re4 {[%emt 0:01:35]} 32. Rc7 {[%emt 0:00:44]} Bxc7 {[%emt 0:02:06]} 33. dxc7 {[%emt 0:00:03]} Rxd5 {[%emt 0:00:13]} 34. c8=Q+ {[%emt 0:00:07]} Kg7 {[%emt 0:00:08]} 35. g3 {[%emt 0:01:04]} Rd3 {[%emt 0:02:57]} 36. Qxf5 {[%emt 0:00:49]} Re1+ {[%emt 0:00:12]} 37. Kg2 {[%emt 0:00:07]} Rxa3 {[%emt 0:00:14]} 38. Bh6+ {[%emt 0:00:19]} Kxh6 {[%emt 0:00:40]} 39. Qf6+ {[%emt 0:00:06]} Kh5 {[%emt 0:00:11]} 40. g4# {[%emt 0:00:00]} 1-0

[Event "EYTCC Open U18 2022"]
[Site "Thessaloniki"]
[Date "2022.07.16"]
[Round "5.14"]
[White "Xhembulla, Aleksander"]
[Black "Guz, Ari"]
[Result "1/2-1/2"]
[ECO "B15"]
[WhiteElo "1909"]
[BlackElo "2331"]
[Annotator "ChessBase"]
[PlyCount "63"]
[EventDate "2022.07.12"]
[EventType "team-tourn"]
[EventCountry "GRE"]
[SourceTitle "playchess.com"]
[Source "ChessBase"]
[SourceQuality "1"]
[WhiteTeam "Albania"]
[BlackTeam "Israel"]
[WhiteTeamCountry "ALB"]
[BlackTeamCountry "ISR"]
[TimeControl "40/5400+30:1800+30"]

1. e4 {[%emt 0:00:03]} c6 {[%emt 0:00:33]} 2. d4 {[%emt 0:00:06]} d5 {[%emt 0:00:06]} 3. Nc3 {[%emt 0:00:05]} dxe4 {[%emt 0:00:06]} 4. Nxe4 {[%emt 0:00:04]} Nf6 {[%emt 0:00:08]} 5. Nxf6+ {[%emt 0:00:05]} exf6 {[%emt 0:00:06]} 6. c3 {[%emt 0:00:04]} Bd6 {[%emt 0:00:11]} 7. Bd3 {[%emt 0:00:09]} O-O {[%emt 0:00:10]} 8. Qc2 {[%emt 0:00:14]} Re8+ {[%emt 0:00:08]} 9. Ne2 {[%emt 0:00:05]} h5 {[%emt 0:00:06]} 10. O-O {[%emt 0:00:06]} h4 {[%emt 0:00:24]} 11. Bf4 {[%emt 0:01:15]} Qc7 {[%emt 0:10:37]} 12. Qd2 {[%emt 0:12:38]} Nd7 {[%emt 0:01:50]} 13. Bxd6 {[%emt 0:00:29]} Qxd6 {[%emt 0:00:08]} 14. h3 {[%emt 0:00:02]} Nf8 {[%emt 0:00:45]} 15. Rfe1 {[%emt 0:03:51]} Bd7 {[%emt 0:12:28]} 16. a4 {[%emt 0:13:47]} Re7 {[%emt 0:03:29]} 17. Qf4 {[%emt 0:12:09]} Qxf4 {[%emt 0:01:48]} 18. Nxf4 {[%emt 0:00:08]} Rxe1+ {[%emt 0:03:43]} 19. Rxe1 {[%emt 0:00:17]} Ne6 {[%emt 0:00:02]} 20. Nxe6 {[%emt 0:08:24]} Bxe6 {[%emt 0:07:40]} 21. a5 {[%emt 0:00:39]} a6 {[%emt 0:06:22]} 22. Bf1 {[%emt 0:15:34]} Kf8 {[%emt 0:01:31]} 23. b4 {[%emt 0:01:54]} Rd8 {[%emt 0:02:28]} 24. g3 {[%emt 0:03:20]} hxg3 {[%emt 0:00:34]} 25. fxg3 {[%emt 0:00:05]} Ke7 {[%emt 0:00:41]} 26. Kf2 {[%emt 0:04:06]} Kd6 {[%emt 0:01:03]} 27. h4 {[%emt 0:05:41]} Rh8 {[%emt 0:01:59]} 28. Be2 {[%emt 0:00:31]} f5 {[%emt 0:03:34]} 29. Ke3 {[%emt 0:01:00]} Re8 {[%emt 0:01:19]} 30. Kf2 {[%emt 0:01:30]} Rh8 {[%emt 0:01:40]} 31. Ke3 {[%emt 0:00:08]} Re8 {[%emt 0:03:44]} 32. Kf2 {[%emt 0:00:09]} 1/2-1/2

[Event "EYTCC Open U18 2022"]
[Site "Thessaloniki"]
[Date "2022.07.16"]
[Round "5.15"]
[White "Zemach, Nadav"]
[Black "Ramaj, Ergit"]
[Result "1-0"]
[ECO "E64"]
[WhiteElo "2225"]
[BlackElo "1980"]
[Annotator "ChessBase"]
[PlyCount "55"]
[EventDate "2022.07.12"]
[EventType "team-tourn"]
[EventCountry "GRE"]
[SourceTitle "playchess.com"]
[Source "ChessBase"]
[SourceQuality "1"]
[WhiteTeam "Israel"]
[BlackTeam "Albania"]
[WhiteTeamCountry "ISR"]
[BlackTeamCountry "ALB"]
[TimeControl "40/5400+30:1800+30"]

1. d4 {[%emt 0:00:02]} Nf6 {[%emt 0:00:09]} 2. c4 {[%emt 0:00:06]} g6 {[%emt 0:00:09]} 3. g3 {[%emt 0:00:05]} Bg7 {[%emt 0:00:09]} 4. Bg2 {[%emt 0:00:06]} O-O {[%emt 0:00:12]} 5. Nc3 {[%emt 0:00:23]} d6 {[%emt 0:00:09]} 6. Nf3 {[%emt 0:00:06]} c5 {[%emt 0:00:25]} 7. d5 {[%emt 0:00:14]} e6 {[%emt 0:00:21]} 8. O-O {[%emt 0:00:07]} Re8 {[%emt 0:00:18]} 9. Bf4 {[%emt 0:02:20]} exd5 {[%emt 0:03:13]} 10. cxd5 {[%emt 0:00:02]} Ne4 {[%emt 0:12:22]} 11. Nxe4 {[%emt 0:00:07]} Rxe4 {[%emt 0:00:15]} 12. Nd2 {[%emt 0:00:03]} Re8 {[%emt 0:13:59]} 13. Nc4 {[%emt 0:03:19]} g5 {[%emt 0:11:59]} 14. Bxd6 {[%emt 0:06:41]} Na6 {[%emt 0:14:25]} 15. a4 {[%emt 0:04:01]} Bd7 {[%emt 0:09:45]} 16. Qb3 {[%emt 0:03:56]} Qc8 {[%emt 0:03:29]} 17. e4 {[%emt 0:04:59]} Nb4 {[%emt 0:04:38]} 18. Rfe1 {[%emt 0:06:35]} b5 {[%emt 0:07:15]} 19. axb5 {[%emt 0:01:16]} Bxb5 {[%emt 0:00:22]} 20. e5 {[%emt 0:06:54]} Qf5 {[%emt 0:08:41]} 21. Be4 {[%emt 0:02:38]} Qd7 {[%emt 0:02:05]} 22. Bxc5 {[%emt 0:03:05]} Na6 {[%emt 0:02:56]} 23. Bd6 {[%emt 0:01:35]} Rac8 {[%emt 0:01:00]} 24. Na3 {[%emt 0:03:32]} Ba4 {[%emt 0:01:27]} 25. Qe3 {[%emt 0:00:38]} h6 {[%emt 0:01:37]} 26. b3 {[%emt 0:00:40]} Bb5 {[%emt 0:00:50]} 27. Nxb5 {[%emt 0:00:20]} Qxb5 {[%emt 0:00:24]} 28. Bd3 {[%emt 0:00:32]} 1-0

[Event "EYTCC Open U18 2022"]
[Site "Thessaloniki"]
[Date "2022.07.16"]
[Round "5.16"]
[White "Boci, Petro"]
[Black "Vagman, Roy"]
[Result "0-1"]
[ECO "B32"]
[WhiteElo "1709"]
[BlackElo "2180"]
[Annotator "ChessBase"]
[PlyCount "119"]
[EventDate "2022.07.12"]
[EventType "team-tourn"]
[EventCountry "GRE"]
[SourceTitle "playchess.com"]
[Source "ChessBase"]
[SourceQuality "1"]
[WhiteTeam "Albania"]
[BlackTeam "Israel"]
[WhiteTeamCountry "ALB"]
[BlackTeamCountry "ISR"]
[TimeControl "40/5400+30:1800+30"]

1. e4 {[%emt 0:00:08]} c5 {[%emt 0:00:07]} 2. Nf3 {[%emt 0:00:10]} Nc6 {[%emt 0:00:07]} 3. d4 {[%emt 0:00:17]} cxd4 {[%emt 0:00:16]} 4. Nxd4 {[%emt 0:00:05]} e5 {[%emt 0:00:17]} 5. Nb5 {[%emt 0:01:27]} d6 {[%emt 0:00:22]} 6. N1c3 {[%emt 0:00:50]} a6 {[%emt 0:00:31]} 7. Na3 {[%emt 0:00:10]} Be6 {[%emt 0:00:22]} 8. Nc4 {[%emt 0:04:16]} Rb8 {[%emt 0:05:06]} 9. a4 {[%emt 0:04:18]} b5 {[%emt 0:18:32]} 10. axb5 {[%emt 0:07:05]} axb5 {[%emt 0:00:08]} 11. Ne3 {[%emt 0:00:17]} b4 {[%emt 0:03:53]} 12. Ncd5 {[%emt 0:09:10]} Be7 {[%emt 0:23:55]} 13. Bc4 {[%emt 0:13:29]} Nf6 {[%emt 0:09:36]} 14. Nxf6+ {[%emt 0:05:06]} Bxf6 {[%emt 0:01:29]} 15. Nd5 {[%emt 0:04:23]} O-O {[%emt 0:02:33]} 16. O-O {[%emt 0:01:26]} Bg5 {[%emt 0:07:37]} 17. Ra6 {[%emt 0:11:43]} Bxc1 {[%emt 0:03:42]} 18. Qxc1 {[%emt 0:03:47]} Nd4 {[%emt 0:01:33]} 19. c3 {[%emt 0:05:02]} bxc3 {[%emt 0:01:01]} 20. bxc3 {[%emt 0:00:21]} Nb3 {[%emt 0:01:43]} 21. Bxb3 {[%emt 0:00:44]} Rxb3 {[%emt 0:01:06]} 22. Qd1 {[%emt 0:00:39]} Rb7 {[%emt 0:04:48]} 23. Rxd6 {[%emt 0:02:36]} Qb8 {[%emt 0:02:11]} 24. Nb4 {[%emt 0:03:12]} Qa8 {[%emt 0:02:04]} 25. Qd3 {[%emt 0:01:52]} Rc7 {[%emt 0:03:54]} 26. Rd1 {[%emt 0:01:55]} h6 {[%emt 0:01:30]} 27. Ra6 {[%emt 0:05:04]} Qc8 {[%emt 0:00:41]} 28. Ra3 {[%emt 0:00:24]} Rd7 {[%emt 0:01:17]} 29. Nd5 {[%emt 0:00:35]} Qc5 {[%emt 0:00:20]} 30. c4 {[%emt 0:01:14]} Kh7 {[%emt 0:00:53]} 31. Ra6 {[%emt 0:01:27]} Rfd8 {[%emt 0:00:42]} 32. Rda1 {[%emt 0:00:44]} Rd6 {[%emt 0:00:37]} 33. R6a5 {[%emt 0:00:29]} Qc8 {[%emt 0:00:39]} 34. c5 {[%emt 0:00:28]} Rc6 {[%emt 0:00:21]} 35. Qe3 {[%emt 0:01:12]} Qb7 {[%emt 0:00:51]} 36. h4 {[%emt 0:01:08]} Rcc8 {[%emt 0:01:02]} 37. Nc3 {[%emt 0:03:25]} Qb3 {[%emt 0:00:45]} 38. Qg3 {[%emt 0:02:41]} Rd4 {[%emt 0:01:27]} 39. R5a3 {[%emt 0:01:05]} Qb4 {[%emt 0:00:38]} 40. Qxe5 {[%emt 0:00:00]} Rxc5 {[%emt 0:00:00]} 41. Qg3 {[%emt 0:08:34]} Rdc4 {[%emt 0:08:02]} 42. Ne2 {[%emt 0:02:34]} Rxe4 {[%emt 0:10:23]} 43. Ra4 {[%emt 0:02:29]} Qxa4 {[%emt 0:03:00]} 44. Rxa4 {[%emt 0:00:13]} Rxa4 {[%emt 0:00:03]} 45. Nf4 {[%emt 0:02:18]} Bf5 {[%emt 0:02:06]} 46. Qf3 {[%emt 0:03:23]} Rc1+ {[%emt 0:01:11]} 47. Kh2 {[%emt 0:00:08]} Rcc4 {[%emt 0:00:15]} 48. g3 {[%emt 0:01:55]} Ra1 {[%emt 0:02:17]} 49. Ng2 {[%emt 0:04:21]} Be4 {[%emt 0:03:51]} 50. Qf4 {[%emt 0:00:58]} Rh1+ {[%emt 0:01:31]} 51. Kxh1 {[%emt 0:00:35]} Bxg2+ {[%emt 0:00:03]} 52. Kxg2 {[%emt 0:00:05]} Rxf4 {[%emt 0:00:05]} 53. gxf4 {[%emt 0:00:04]} Kg6 {[%emt 0:00:03]} 54. Kg3 {[%emt 0:00:14]} h5 {[%emt 0:01:05]} 55. Kg2 {[%emt 0:03:21]} Kf5 {[%emt 0:00:12]} 56. Kf3 {[%emt 0:00:07]} g6 {[%emt 0:00:40]} 57. Ke3 {[%emt 0:01:42]} Kg4 {[%emt 0:00:16]} 58. Ke4 {[%emt 0:00:05]} Kxh4 {[%emt 0:01:03]} 59. f5 {[%emt 0:00:19]} Kg4 {[%emt 0:00:23]} 60. Kd4 0-1

[Event "EYTCC Open U18 2022"]
[Site "Thessaloniki"]
[Date "2022.07.16"]
[Round "5.17"]
[White "Filip, Andrei"]
[Black "Svane, Frederik"]
[Result "0-1"]
[ECO "B52"]
[WhiteElo "2344"]
[BlackElo "2521"]
[Annotator "ChessBase"]
[PlyCount "152"]
[EventDate "2022.07.12"]
[EventType "team-tourn"]
[EventCountry "GRE"]
[SourceTitle "playchess.com"]
[Source "ChessBase"]
[SourceQuality "1"]
[WhiteTeam "Romania"]
[BlackTeam "Germany"]
[WhiteTeamCountry "ROU"]
[BlackTeamCountry "GER"]
[TimeControl "40/5400+30:1800+30"]

1. e4 {[%emt 0:00:03]} c5 {[%emt 0:00:07]} 2. Nf3 {[%emt 0:00:09]} d6 {[%emt 0:00:05]} 3. Bb5+ {[%emt 0:00:06]} Bd7 {[%emt 0:00:03]} 4. Bxd7+ {[%emt 0:00:09]} Nxd7 {[%emt 0:00:09]} 5. O-O {[%emt 0:00:12]} Ngf6 {[%emt 0:00:12]} 6. Qe2 {[%emt 0:00:06]} e6 {[%emt 0:06:12]} 7. d4 {[%emt 0:00:05]} cxd4 {[%emt 0:00:22]} 8. Nxd4 {[%emt 0:00:05]} Be7 {[%emt 0:01:20]} 9. c4 {[%emt 0:00:08]} a6 {[%emt 0:01:23]} 10. Nc3 {[%emt 0:00:41]} Rc8 {[%emt 0:01:06]} 11. Bd2 {[%emt 0:13:38]} O-O {[%emt 0:08:35]} 12. b3 {[%emt 0:00:28]} Re8 {[%emt 0:02:19]} 13. Rac1 {[%emt 0:04:21]} Bf8 {[%emt 0:03:21]} 14. Rfd1 {[%emt 0:08:56]} Qb6 {[%emt 0:07:43]} 15. Be3 {[%emt 0:02:57]} Qa5 {[%emt 0:00:09]} 16. Bd2 {[%emt 0:15:24]} Qc5 {[%emt 0:01:30]} 17. Be3 {[%emt 0:02:27]} Qa5 {[%emt 0:00:22]} 18. Bd2 {[%emt 0:08:23]} Qc7 {[%emt 0:05:25]} 19. Kh1 {[%emt 0:03:59]} Qb8 {[%emt 0:00:58]} 20. f4 {[%emt 0:05:23]} g6 {[%emt 0:08:14]} 21. Nf3 {[%emt 0:05:59]} h6 {[%emt 0:27:14]} 22. Be3 {[%emt 0:06:31]} Rcd8 {[%emt 0:00:52]} 23. Bd4 {[%emt 0:01:17]} Bg7 {[%emt 0:02:14]} 24. Rd2 {[%emt 0:01:31]} e5 {[%emt 0:08:23]} 25. fxe5 {[%emt 0:00:11]} Nxe5 {[%emt 0:01:47]} 26. Nxe5 {[%emt 0:09:52]} dxe5 {[%emt 0:00:04]} 27. Bb6 {[%emt 0:00:17]} Rxd2 {[%emt 0:00:04]} 28. Qxd2 {[%emt 0:00:04]} Qc8 {[%emt 0:00:03]} 29. Rd1 {[%emt 0:04:54]} h5 {[%emt 0:03:51]} 30. h3 {[%emt 0:01:22]} Kh7 {[%emt 0:05:39]} 31. Bd8 {[%emt 0:02:03]} Qe6 {[%emt 0:04:03]} 32. Bxf6 {[%emt 0:01:54]} Bxf6 {[%emt 0:00:39]} 33. Nd5 {[%emt 0:00:49]} Bd8 {[%emt 0:00:07]} 34. Qb4 {[%emt 0:00:42]} Qc6 {[%emt 0:00:24]} 35. Rf1 {[%emt 0:01:03]} Kg7 {[%emt 0:00:04]} 36. Qc3 {[%emt 0:00:26]} Qe6 {[%emt 0:00:09]} 37. b4 {[%emt 0:00:39]} Rf8 {[%emt 0:00:34]} 38. a4 {[%emt 0:00:44]} Kh6 {[%emt 0:01:10]} 39. c5 {[%emt 0:00:44]} Qc6 {[%emt 0:01:17]} 40. Qxe5 {[%emt 0:00:00]} Qxa4 {[%emt 0:00:00]} 41. Qd6 {[%emt 0:05:08]} Kg7 {[%emt 0:07:21]} 42. Nf4 {[%emt 0:05:58]} Qe8 {[%emt 0:00:06]} 43. Qd5 {[%emt 0:02:41]} Qc6 {[%emt 0:04:25]} 44. Qd4+ {[%emt 0:02:30]} Kg8 {[%emt 0:00:42]} 45. Rf3 {[%emt 0:01:41]} Bf6 {[%emt 0:02:29]} 46. Qc4 {[%emt 0:06:42]} Be5 {[%emt 0:01:17]} 47. Nd5 {[%emt 0:00:49]} Re8 {[%emt 0:00:57]} 48. Qf1 {[%emt 0:03:20]} Qd7 {[%emt 0:00:03]} 49. Rf6 {[%emt 0:01:42]} Re6 {[%emt 0:14:56]} 50. Rf3 {[%emt 0:00:12]} Kg7 {[%emt 0:00:10]} 51. Nb6 {[%emt 0:01:04]} Qe8 {[%emt 0:00:15]} 52. Nd5 {[%emt 0:00:44]} Kg8 {[%emt 0:00:16]} 53. Qf2 {[%emt 0:01:32]} Qd7 {[%emt 0:00:30]} 54. Qd2 {[%emt 0:01:32]} Kg7 {[%emt 0:01:46]} 55. Qf2 {[%emt 0:00:21]} Re8 {[%emt 0:00:09]} 56. Qf1 {[%emt 0:00:48]} Kf8 {[%emt 0:01:46]} 57. Nb6 {[%emt 0:01:27]} Qe6 {[%emt 0:00:10]} 58. Nc4 {[%emt 0:01:04]} Re7 {[%emt 0:00:19]} 59. Nb6 {[%emt 0:00:48]} Kg7 {[%emt 0:00:08]} 60. Nd5 {[%emt 0:00:42]} Re8 {[%emt 0:00:25]} 61. Qf2 {[%emt 0:00:48]} Rd8 {[%emt 0:01:01]} 62. Qf1 {[%emt 0:00:29]} f5 {[%emt 0:01:18]} 63. Nf4 {[%emt 0:00:40]} Bxf4 {[%emt 0:00:07]} 64. exf5 {[%emt 0:00:21]} Qxf5 {[%emt 0:00:27]} 65. Rxf4 {[%emt 0:00:05]} Qe6 {[%emt 0:00:10]} 66. Qa1+ {[%emt 0:00:12]} Kh7 {[%emt 0:01:18]} 67. Rf6 {[%emt 0:00:51]} Qe7 {[%emt 0:00:46]} 68. Rb6 {[%emt 0:00:58]} Rd2 {[%emt 0:00:37]} 69. Qf1 {[%emt 0:00:31]} Rb2 {[%emt 0:01:31]} 70. Qd1 {[%emt 0:00:35]} Qe4 {[%emt 0:00:21]} 71. Qd7+ {[%emt 0:00:29]} Kh6 {[%emt 0:00:06]} 72. Qxb7 {[%emt 0:00:32]} Qe1+ {[%emt 0:00:05]} 73. Kh2 {[%emt 0:00:04]} Qe5+ {[%emt 0:00:03]} 74. Kg1 {[%emt 0:00:07]} Rb1+ {[%emt 0:00:03]} 75. Kf2 {[%emt 0:00:04]} Qe1+ {[%emt 0:00:03]} 76. Kf3 {[%emt 0:00:03]} Rb3+ {[%emt 0:00:03]} 0-1

[Event "EYTCC Open U18 2022"]
[Site "Thessaloniki"]
[Date "2022.07.16"]
[Round "5.18"]
[White "Koellner, Ruben Gideon"]
[Black "Stepanencu, Nicodim-Cosmin"]
[Result "1-0"]
[ECO "A48"]
[WhiteElo "2422"]
[BlackElo "2277"]
[Annotator "ChessBase"]
[PlyCount "59"]
[EventDate "2022.07.12"]
[EventType "team-tourn"]
[EventCountry "GRE"]
[SourceTitle "playchess.com"]
[Source "ChessBase"]
[SourceQuality "1"]
[WhiteTeam "Germany"]
[BlackTeam "Romania"]
[WhiteTeamCountry "GER"]
[BlackTeamCountry "ROU"]
[TimeControl "40/5400+30:1800+30"]

1. d4 {[%emt 0:00:29]} Nf6 {[%emt 0:00:06]} 2. Nf3 {[%emt 0:00:12]} g6 {[%emt 0:00:05]} 3. Nbd2 {[%emt 0:00:04]} Bg7 {[%emt 0:00:05]} 4. e4 {[%emt 0:00:04]} O-O {[%emt 0:00:08]} 5. c3 {[%emt 0:00:03]} d6 {[%emt 0:00:52]} 6. Bc4 {[%emt 0:00:07]} c6 {[%emt 0:15:49]} 7. Bb3 {[%emt 0:00:16]} Nbd7 {[%emt 0:01:32]} 8. e5 {[%emt 0:02:00]} dxe5 {[%emt 0:01:24]} 9. dxe5 {[%emt 0:00:07]} Nd5 {[%emt 0:04:44]} 10. e6 {[%emt 0:00:12]} fxe6 {[%emt 0:06:26]} 11. Ne4 {[%emt 0:00:17]} N7f6 {[%emt 0:06:06]} 12. Ng3 {[%emt 0:01:40]} Kh8 {[%emt 0:08:02]} 13. h4 {[%emt 0:02:23]} e5 {[%emt 0:04:22]} 14. h5 {[%emt 0:08:07]} e4 {[%emt 0:21:59]} 15. h6 {[%emt 0:23:15]} exf3 {[%emt 0:00:00]} 16. hxg7+ {[%emt 0:00:06]} Kxg7 {[%emt 0:00:00]} 17. Bh6+ {[%emt 0:00:10]} Kh8 {[%emt 0:00:00]} 18. gxf3 {[%emt 0:05:12]} Re8 {[%emt 0:06:29]} 19. Qd2 {[%emt 0:00:55]} Be6 {[%emt 0:00:45]} 20. O-O-O {[%emt 0:01:28]} Qb6 {[%emt 0:06:46]} 21. Qe1 {[%emt 0:19:49]} Bf7 {[%emt 0:06:10]} 22. Qe5 {[%emt 0:03:24]} a5 {[%emt 0:00:20]} 23. Ne4 {[%emt 0:06:47]} a4 {[%emt 0:01:28]} 24. Bxd5 {[%emt 0:02:44]} cxd5 {[%emt 0:00:12]} 25. Be3 {[%emt 0:00:12]} d4 {[%emt 0:08:06]} 26. Bxd4 {[%emt 0:01:54]} Qc6 {[%emt 0:00:01]} 27. Qf4 {[%emt 0:03:38]} a3 {[%emt 0:01:26]} 28. b3 {[%emt 0:00:53]} Ra6 {[%emt 0:00:30]} 29. Rxh7+ {[%emt 0:01:45]} Kg8 {[%emt 0:00:36]} 30. Qh6 {[%emt 0:00:51]} 1-0